bitfinex-derivatives/quotes_SOLF0:USTF0_20240923
["timestamp","ask_amount","ask_price","bid_price","bid_amount"]
[1727061678028,3.364,148.64,148.58,3.3653]
[1727061678230,18.13,148.63,148.53,0.4847]
[1727061678437,18.13,148.63,148.42,6.74]
[1727061678438,18.13,148.63,148.51,3.3667]
[1727061678738,4.0611,148.67,148.47,18.6129]
[1727061678939,18.13,148.62,148.5,18.13]
[1727061679333,4.0611,148.67,148.5,18.13]
[1727061679534,18.13,148.66,148.53,18.13]
[1727061679735,18.13,148.66,148.53,21.44941926]
[1727061680137,3.3642,148.63,148.57,3.3655]
[1727061680444,18.13,148.66,148.55,18.13]
[1727061681134,3.3642,148.63,148.56,3.3656]
[1727061681336,18.13,148.66,148.53,18.13]
[1727061681535,4.0611,148.67,148.53,18.13]
[1727061681733,3.3646,148.62,148.55,3.3659]
[1727061681933,18.13,148.64,148.53,18.13]
[1727061682140,3.365,148.6,148.5,18.6129]
[1727061682437,3.37361157,148.6,148.5,18.6129]
[1727061682637,18.13,148.62,148.5,18.6129]
[1727061683331,3.3651,148.59,148.51,3.3667]
[1727061683528,4.0611,148.67,148.54,18.13]
[1727061683736,4.0611,148.67,148.59,18.13]
[1727061684133,3.36889962,148.66,148.56,18.13]
[1727061684334,4.0611,148.67,148.57,3.3655]
[1727061684335,3.364,148.64,148.57,3.3655]
[1727061684537,3.364,148.64,148.56,18.13]
[1727061684738,7.40609956,148.67,148.56,18.13]
[1727061685843,4.0611,148.67,148.56,18.13]
[1727061686239,2.7212,148.67,148.61,3.3644]
[1727061686840,1.3645,148.76,148.61,18.13]
[1727061687036,20.9351,148.75,148.61,18.13]
[1727061687438,20.9351,148.75,148.63,3.3641]
[1727061687743,18.13,148.72,148.61,18.13]
[1727061688239,18.13,148.72,148.59,18.13]
[1727061688442,21.41970524,148.72,148.59,18.13]
[1727061688837,3.28970524,148.72,148.62,18.13]
[1727061689043,20.9351,148.75,148.62,18.13]
[1727061689343,2.8051,148.75,148.64,18.13]
[1727061689737,3.3622,148.72,148.65,3.3635]
[1727061690138,3.36674988,148.73,148.62,18.13]
[1727061690335,18.13,148.72,148.61,3.3645]
[1727061690537,18.13,148.72,148.6,18.13]
[1727061691841,18.13,148.7,148.57,75.80040989]
[1727061692038,1.4118,148.69,148.57,79.09864015]
[1727061692238,3.3634,148.67,148.57,79.09864015]
[1727061692633,9.30319023,148.68,148.57,79.09864015]
[1727061692843,5.93999023,148.68,148.57,79.09864015]
[1727061693241,5.93999023,148.68,148.6,3.3647]
[1727061693242,3.3634,148.67,148.6,3.3647]
[1727061693538,5.93999023,148.68,148.57,75.80040989]
[1727061693743,3.3637,148.66,148.59,3.3649]
[1727061693942,5.93999023,148.68,148.59,3.3649]
[1727061694138,5.93999023,148.68,148.57,75.80040989]
[1727061694339,2.6209,148.68,148.6,18.13]
[1727061695451,2.6209,148.68,148.57,75.80040989]
[1727061696235,2.6209,148.68,148.57,18.6132]
[1727061696643,18.13,148.66,148.53,18.13]
[1727061696943,18.13,148.65,148.53,18.13]
[1727061697248,20.7509,148.68,148.55,18.13]
[1727061697441,20.7509,148.68,148.56,3.3657]
[1727061698043,18.13,148.65,148.52,18.13]
[1727061698549,3.3648,148.61,148.54,3.3662]
[1727061698746,2.6209,148.68,148.55,18.13]
[1727061698942,20.7509,148.68,148.55,18.13]
[1727061699148,3.3641,148.64,148.55,18.13]
[1727061699851,20.7509,148.68,148.55,21.46748195]
[1727061699852,3.3638,148.65,148.55,21.46748195]
[1727061700248,3.3638,148.65,148.58,3.3652]
[1727061700642,3.364,148.64,148.55,18.13]
[1727061700844,18.13,148.64,148.5,18.611]
[1727061701051,18.13,148.61,148.5,18.611]
[1727061701248,3.3659,148.56,148.49,3.3672]
[1727061701848,3.3663,148.54,148.47,3.3676]
[1727061702060,4.1613,148.6,148.46,18.13]
[1727061702261,3.3609311,148.59,148.51,18.13]
[1727061702560,4.1613,148.6,148.51,18.13]
[1727061702954,3.31178779,148.59,148.51,18.13]
[1727061703261,3.44844658,148.59,148.51,18.13]
[1727061703458,4.1613,148.6,148.51,18.13]
[1727061703751,4.1613,148.6,148.52,3.3667]
[1727061703955,3.29247009,148.59,148.52,3.3667]
[1727061704152,4.1613,148.6,148.54,3.3662]
[1727061704358,7.45275982,148.6,148.51,18.13]
[1727061704654,3.3654,148.58,148.51,21.4967]
[1727061704858,3.3654,148.58,148.51,18.13]
[1727061705258,3.3654,148.58,148.51,21.4967]
[1727061705561,3.3656,148.57,148.49,18.13]
[1727061706253,25.58275982,148.6,148.49,18.13]
[1727061706451,7.45275982,148.6,148.49,18.13]
[1727061706756,3.3654,148.58,148.51,3.3668]
[1727061706961,7.45275982,148.6,148.51,18.13]
[1727061707258,1.4428,148.6,148.54,18.13]
[1727061707761,2.8263,148.64,148.54,18.13]
[1727061708057,4.2215,148.64,148.54,18.13]
[1727061708262,7.54046063,148.64,148.54,18.13]
[1727061708653,4.2215,148.64,148.56,18.13]
[1727061709056,4.2215,148.64,148.59,3.365]
[1727061709249,18.13,148.69,148.58,18.13]
[1727061709455,4.196,148.71,148.58,18.13]
[1727061709858,3.3634,148.67,148.61,3.3645]
[1727061710356,3.3631,148.68,148.58,18.13]
[1727061710662,4.196,148.71,148.61,18.13]
[1727061711350,3.3629,148.69,148.63,3.364]
[1727061711861,3.3629,148.69,148.61,18.13]
[1727061712261,4.196,148.71,148.61,18.13]
[1727061712857,3.35992131,148.74,148.63,18.13]
[1727061713063,18.13,148.75,148.63,18.13]
[1727061713256,3.3623,148.72,148.66,3.3634]
[1727061713558,21.42889657,148.75,148.63,18.13]
[1727061713956,3.3626,148.71,148.65,3.3635]
[1727061714158,3.29889657,148.75,148.63,18.13]
[1727061714358,3.3621,148.73,148.63,18.13]
[1727061714563,6.74309885,148.73,148.63,18.13]
[1727061715063,3.38099885,148.73,148.63,18.13]
[1727061715254,3.3616,148.75,148.66,18.13]
[1727061715654,3.42777023,148.76,148.68,18.13]
[1727061716161,18.13,148.78,148.66,21.43764517]
[1727061716367,2.7627,148.75,148.66,3.30764517]
[1727061716559,2.7627,148.75,148.64,18.13]
[1727061716760,3.362,148.73,148.67,3.3631]
[1727061716961,6.12629971,148.75,148.64,21.44449606]
[1727061717455,2.7627,148.75,148.67,18.13]
[1727061717656,4.38785844,148.77,148.71,3.3622]
[1727061717864,1.02665844,148.77,148.69,18.13]
[1727061718269,18.13,148.75,148.5,6.7343]
[1727061718567,2.7356,148.76,148.64,18.13]
[1727061718863,2.7356,148.76,148.65,3.30137933]
[1727061718864,3.3617,148.74,148.65,3.30137933]
[1727061719064,2.7356,148.76,148.67,18.13]
[1727061719065,6.06859401,148.76,148.67,18.13]
[1727061720068,3.3618,148.74,148.67,18.13]
[1727061720268,1.02665844,148.77,148.69,18.13]
[1727061720566,1.02665844,148.77,148.72,18.13]
[1727061720766,1.02665844,148.77,148.67,18.13]
[1727061721260,1.02665844,148.77,148.65,1.8274]
[1727061721460,19.15665844,148.77,148.65,1.8274]
[1727061721660,3.3628,148.69,148.65,1.3476]
[1727061721860,18.13,148.74,148.65,1.3476]
[1727061722669,3.3622,148.72,148.65,4.7111]
[1727061722865,1.02665844,148.77,148.65,1.3476]
[1727061723263,1.02665844,148.77,148.67,18.13]
[1727061723964,3.3618,148.74,148.67,21.4931]
[1727061724168,1.02665844,148.77,148.67,21.4931]
[1727061724364,3.3617,148.74,148.67,21.4931]
[1727061725167,1.02665844,148.77,148.7,18.13]
[1727061725571,1.02665844,148.77,148.71,0.4797]
[1727061725967,1.02665844,148.77,148.73,3.3618]
[1727061726469,2.6448,148.85,148.75,18.13]
[1727061727078,3.36,148.82,148.75,21.4913]
[1727061727265,3.36,148.82,148.75,3.3613]
[1727061727575,3.3597,148.83,148.76,3.3612]
[1727061727871,2.6448,148.85,148.74,18.13]
[1727061728172,20.7748,148.85,148.74,18.13]
[1727061728474,2.6448,148.85,148.74,18.13]
[1727061728766,3.3601,148.82,148.74,21.4915]
[1727061729069,3.36874727,148.83,148.74,3.3615]
[1727061729371,3.36874727,148.83,148.72,1.3954]
[1727061729372,18.13,148.83,148.72,1.3954]
[1727061729675,3.40953879,148.83,148.72,1.3954]
[1727061729863,3.3602,148.81,148.74,3.3615]
[1727061730063,2.6448,148.85,148.74,3.3615]
[1727061730270,2.6448,148.85,148.72,1.3954]
[1727061731676,3.3601,148.82,148.75,3.3613]
[1727061731985,18.13,148.78,148.56,80.7]
[1727061732163,2.6448,148.85,148.66,0.4801]
[1727061732164,6.03618327,148.85,148.66,0.4801]
[1727061732367,18.13,148.8,148.67,18.13]
[1727061732570,3.29488128,148.81,148.69,18.13]
[1727061732765,3.3609,148.78,148.69,21.4927]
[1727061733076,2.6448,148.85,148.69,18.13]
[1727061733077,3.30900652,148.81,148.69,18.13]
[1727061733278,18.13,148.83,148.69,18.13]
[1727061733578,18.13,148.83,148.66,0.4801]
[1727061733579,20.7748,148.85,148.72,18.13]
[1727061733767,18.63897626,148.89,148.75,18.13]
[1727061734075,22.01322795,148.89,148.75,18.13]
[1727061734581,22.01322795,148.89,148.75,21.4915]
[1727061734878,18.13,148.87,148.75,18.13]
[1727061735270,18.13,148.87,148.76,3.361]
[1727061735677,3.3595,148.84,148.77,21.491]
[1727061736172,18.13,148.88,148.75,18.13]
[1727061736378,3.36,148.82,148.75,18.13]
[1727061737076,3.3601,148.81,148.75,18.13]
[1727061737264,2.7342,148.86,148.75,18.13]
[1727061737668,2.7342,148.86,148.77,3.3608]
[1727061737981,2.7342,148.86,148.75,18.13]
[1727061738279,2.7342,148.86,148.75,21.4913]
[1727061738577,2.7342,148.86,148.75,18.13]
[1727061738776,3.3601,148.82,148.75,21.4914]
[1727061738979,20.8642,148.86,148.73,1.6136]
[1727061739379,20.8642,148.86,148.75,18.13]
[1727061739674,2.7342,148.86,148.75,18.13]
[1727061739878,20.8642,148.86,148.73,1.6136]
[1727061741779,20.8642,148.86,148.75,3.3614]
[1727061741984,20.8642,148.86,148.73,19.7436]
[1727061742981,3.3601,148.82,148.75,3.3613]
[1727061743179,2.7342,148.86,148.73,19.7436]
[1727061743372,18.13,148.85,148.73,19.7436]
[1727061744082,3.3605,148.8,148.73,23.1053]
[1727061744284,2.7342,148.86,148.73,19.7436]
[1727061744582,18.13,148.82,148.7,18.13]
[1727061744782,18.13,148.82,148.68,18.13]
[1727061744987,18.13,148.8,148.68,18.13]
[1727061745284,3.3616,148.75,148.68,21.493]
[1727061745485,4.0499,148.79,148.67,80.68]
[1727061745486,18.13,148.77,148.67,80.68]
[1727061745776,18.13,148.75,148.61,21.49517135]
[1727061746079,18.13,148.75,148.58,80.66]
[1727061746080,18.13,148.74,148.59,1.6139]
[1727061746380,18.13,148.69,148.57,3.34129057]
[1727061746683,2.6719,148.68,148.56,18.13]
[1727061747187,4.0118,148.68,148.57,3.3655]
[1727061747673,4.0118,148.68,148.56,18.13]
[1727061748081,22.1418,148.68,148.56,18.13]
[1727061748384,3.3635,148.66,148.58,3.3653]
[1727061748880,22.1418,148.68,148.52,1.6139]
[1727061748881,3.3637,148.65,148.52,1.6139]
[1727061749078,4.0118,148.68,148.56,18.13]
[1727061749279,4.0118,148.68,148.57,3.3799973]
[1727061749576,4.0118,148.68,148.56,18.13]
[1727061749779,4.0118,148.68,148.52,1.6139]
[1727061749780,22.1418,148.68,148.54,18.13]
[1727061750377,3.364,148.64,148.56,3.3658]
[1727061750577,22.1418,148.68,148.54,18.13]
[1727061750779,18.13,148.66,148.54,18.13]
[1727061750974,3.3644,148.63,148.55,3.3659]
[1727061751180,18.13,148.66,148.49,3.30934283]
[1727061751381,3.3646,148.62,148.53,21.4964]
[1727061751685,4.0118,148.68,148.53,21.4964]
[1727061751686,18.13,148.64,148.53,21.4964]
[1727061751880,3.3649,148.6,148.53,18.13]
[1727061752187,18.13,148.64,148.5,18.6107]
[1727061752477,18.13,148.64,148.5,18.13]
[1727061753377,3.365,148.6,148.5,18.13]
[1727061753789,3.31088253,148.61,148.5,18.13]
[1727061754089,18.13,148.64,148.5,18.13]
[1727061754090,1.3669,148.6,148.5,18.13]
[1727061754282,6.0991,148.6,148.52,3.3665]
[1727061754486,2.7342,148.6,148.5,18.13]
[1727061755192,1.4124,148.59,148.48,18.13]
[1727061755381,19.5424,148.59,148.47,1.1324]
[1727061755583,3.366,148.55,148.48,3.3675]
[1727061756082,18.13,148.56,148.34,10.14071541]
[1727061756386,18.13,148.56,148.43,18.13]
[1727061756583,3.3656,148.57,148.46,18.13]
[1727061756784,1.4124,148.59,148.46,18.13]
[1727061757183,1.4124,148.59,148.49,18.13]
[1727061757591,3.3653,148.58,148.51,3.3667]
[1727061757791,1.4124,148.59,148.49,18.13]
[1727061757984,1.4124,148.59,148.51,18.13]
[1727061758184,2.7342,148.6,148.53,18.13]
[1727061759384,2.7342,148.6,148.55,3.3659]
[1727061759781,1.3493,148.64,148.55,3.3659]
[1727061760090,3.3645,148.62,148.55,3.3659]
[1727061760385,2.7257,148.63,148.53,18.13]
[1727061761291,18.13,148.61,148.52,3.3667]
[1727061761479,18.13,148.61,148.48,18.13]
[1727061761480,3.29573006,148.6,148.48,18.13]
[1727061761784,18.13,148.61,148.51,3.3669]
[1727061761785,3.3656,148.57,148.51,3.3669]
[1727061761993,4.0691,148.56,148.44,18.13]
[1727061762178,18.13,148.55,148.44,18.13]
[1727061762990,4.0691,148.56,148.44,18.13]
[1727061763387,3.366,148.55,148.44,18.13]
[1727061763887,4.0691,148.56,148.44,18.13]
[1727061764490,3.31783697,148.61,148.48,18.13]
[1727061764690,18.13,148.63,148.48,18.13]
[1727061764890,18.13,148.63,148.48,21.45693062]
[1727061765191,3.365,148.6,148.53,3.3664]
[1727061765392,3.365,148.6,148.49,0.4809]
[1727061765781,18.13,148.63,148.49,0.4809]
[1727061765987,18.13,148.63,148.51,18.13]
[1727061766183,3.3657,148.57,148.51,3.3669]
[1727061766385,18.13,148.6,148.47,18.13]
[1727061766694,18.13,148.63,148.49,18.13]
[1727061766888,18.13,148.63,148.54,3.3662]
[1727061767287,18.13,148.63,148.51,3.36666666]
[1727061767482,3.3647,148.61,148.55,3.366]
[1727061767682,18.13,148.63,148.55,3.366]
[1727061767890,18.13,148.63,148.5,1.134]
[1727061768085,18.13,148.63,148.51,18.13]
[1727061768290,2.6924,148.64,148.54,18.13]
[1727061768892,2.6924,148.64,148.56,18.13]
[1727061769802,6.0564,148.64,148.56,18.13]
[1727061770296,6.0564,148.64,148.58,3.3653]
[1727061770485,2.6924,148.64,148.56,18.13]
[1727061770691,2.6924,148.64,148.58,3.3652]
[1727061770893,2.6924,148.64,148.56,18.13]
[1727061771293,2.6924,148.64,148.54,18.13]
[1727061771894,1.3688,148.64,148.54,18.13]
[1727061772096,1.3476,148.68,148.57,18.13]
[1727061772294,6.0451,148.68,148.62,3.3643]
[1727061772894,3.3634,148.67,148.61,3.3646]
[1727061773099,2.682,148.68,148.59,21.47174665]
[1727061773400,3.35386662,148.71,148.59,21.47174665]
[1727061773401,3.3625,148.71,148.65,3.3636]
[1727061773586,2.682,148.73,148.61,18.13]
[1727061773897,2.682,148.73,148.6,1.6132]
[1727061774199,2.682,148.73,148.63,18.13]
[1727061774607,3.3624,148.72,148.65,3.3636]
[1727061774894,2.682,148.73,148.6,19.7432]
[1727061775304,18.13,148.71,148.6,1.6132]
[1727061775496,3.30417213,148.7,148.6,1.6132]
[1727061775690,18.13,148.71,148.58,98.91]
[1727061776004,18.13,148.69,148.58,98.91]
[1727061776301,18.13,148.69,148.55,18.13]
[1727061776796,3.3639,148.65,148.55,18.13]
[1727061777390,3.3639,148.65,148.58,3.3653]
[1727061777590,2.682,148.73,148.61,18.13]
[1727061777791,3.41486072,148.72,148.61,18.13]
[1727061778196,2.682,148.73,148.61,18.13]
[1727061778805,3.3628,148.69,148.63,3.3641]
[1727061779006,2.682,148.73,148.61,18.13]
[1727061779495,2.682,148.73,148.63,18.13]
[1727061780597,3.37113115,148.72,148.63,18.13]
[1727061780794,2.682,148.73,148.63,3.3641]
[1727061780996,18.13,148.72,148.63,3.3641]
[1727061781502,18.13,148.72,148.61,18.13]
[1727061781503,21.54363299,148.72,148.64,3.3639]
[1727061781703,2.682,148.73,148.61,18.13]
[1727061782007,3.3628,148.7,148.61,18.13]
[1727061782500,2.682,148.73,148.63,18.13]
[1727061782709,2.682,148.73,148.68,3.363]
[1727061783000,2.682,148.73,148.66,18.13]
[1727061783001,6.0441,148.73,148.66,18.13]
[1727061783301,18.13,148.77,148.66,18.13]
[1727061783599,22.2257,148.79,148.66,18.13]
[1727061783803,22.2257,148.79,148.66,21.47869793]
[1727061784003,3.3616,148.75,148.7,3.3624]
[1727061784396,3.3616,148.75,148.66,21.47869793]
[1727061784802,3.3611,148.77,148.66,21.47869793]
[1727061784995,22.2257,148.79,148.68,18.13]
[1727061785200,4.0957,148.79,148.7,18.13]
[1727061785396,4.0957,148.79,148.75,3.3613]
[1727061785605,4.0957,148.79,148.7,18.13]
[1727061785800,2.7576,148.79,148.7,18.13]
[1727061786600,2.7576,148.79,148.75,3.3614]
[1727061786803,2.7576,148.79,148.7,18.13]
[1727061787499,1.4432,148.83,148.7,18.13]
[1727061787704,2.8764,148.83,148.7,18.13]
[1727061787903,3.3602,148.81,148.76,3.3612]
[1727061788104,2.8764,148.83,148.75,18.13]
[1727061788105,1.4332,148.83,148.75,18.13]
[1727061788302,1.3853,148.84,148.75,18.13]
[1727061788601,2.8285,148.88,148.76,1.6129]
[1727061788804,4.2617,148.88,148.78,18.13]
[1727061789198,2.8185,148.88,148.78,18.13]
[1727061789799,3.359,148.86,148.8,3.3602]
[1727061790009,2.8185,148.88,148.78,18.13]
[1727061790203,6.18019197,148.88,148.76,1.6129]
[1727061790397,6.18019197,148.88,148.79,3.3604]
[1727061790603,2.8185,148.88,148.77,18.13]
[1727061791206,6.15295378,148.88,148.77,18.13]
[1727061791606,2.8185,148.88,148.77,18.13]
[1727061791806,2.8185,148.88,148.8,3.3603]
[1727061792007,6.12572689,148.88,148.8,3.3603]
[1727061792206,2.8185,148.88,148.77,18.13]
[1727061792503,18.13,148.86,148.76,1.6129]
[1727061793000,3.3598,148.83,148.77,3.3609]
[1727061793203,3.41579831,148.85,148.76,1.6129]
[1727061793405,3.41579831,148.85,148.76,1.1321]
[1727061793909,2.8185,148.88,148.76,1.1321]
[1727061794397,3.37254749,148.88,148.77,18.13]
[1727061794596,0.50897626,148.89,148.77,18.13]
[1727061794799,3.359,148.86,148.8,21.4902]
[1727061795002,0.50897626,148.89,148.8,18.13]
[1727061795309,0.50897626,148.89,148.76,1.1321]
[1727061795310,18.63897626,148.89,148.76,1.1321]
[1727061795506,18.63897626,148.89,148.77,18.13]
[1727061795708,3.30632683,148.88,148.77,18.13]
[1727061796205,18.13,148.87,148.74,3.33613445]
[1727061796408,1.3727,148.86,148.74,18.13]
[1727061796604,1.3727,148.86,148.77,18.13]
[1727061796905,3.3593,148.85,148.79,3.3604]
[1727061797500,3.3595,148.84,148.78,3.3607]
[1727061798510,1.3727,148.86,148.77,18.13]
[1727061798708,0.50897626,148.89,148.79,18.13]
[1727061799013,3.3586,148.88,148.82,3.3597]
[1727061799313,0.50897626,148.89,148.79,21.51543767]
[1727061799509,0.50897626,148.89,148.79,18.13]
[1727061799714,3.32324862,148.88,148.79,18.13]
[1727061800213,0.50897626,148.89,148.79,18.13]
[1727061800410,0.50897626,148.89,148.77,18.13]
[1727061800612,18.13,148.88,148.77,18.13]
[1727061800809,21.52316928,148.88,148.77,18.13]
[1727061801220,18.13,148.86,148.74,18.13]
[1727061801513,2.6321,148.85,148.74,18.13]
[1727061801818,5.91881519,148.85,148.74,18.13]
[1727061802004,1.4065,148.84,148.74,18.13]
[1727061802207,1.4065,148.84,148.74,21.48865515]
[1727061802407,3.36,148.82,148.76,3.3611]
[1727061802604,1.4065,148.84,148.74,18.13]
[1727061802812,2.6321,148.85,148.76,18.13]
[1727061803018,2.6321,148.85,148.77,3.29848107]
[1727061803216,2.6321,148.85,148.79,18.13]
[1727061803810,0.50897626,148.89,148.79,18.13]
[1727061804413,3.359,148.86,148.79,18.13]
[1727061804621,0.50897626,148.89,148.79,18.13]
[1727061804806,0.50897626,148.89,148.81,18.13]
[1727061805212,0.50897626,148.89,148.83,18.13]
[1727061805511,0.50897626,148.89,148.86,18.13]
[1727061806616,2.7734,148.95,148.88,18.13]
[1727061806915,3.401452,148.98,148.88,18.13]
[1727061807119,3.15705068,149.0,148.91,18.13]
[1727061807513,3.3568,148.96,148.91,18.13]
[1727061808116,3.41841875,148.99,148.89,18.13]
[1727061808316,3.15705068,149.0,148.89,18.13]
[1727061808620,3.15705068,149.0,148.88,1.1325]
[1727061808621,3.34016255,148.99,148.88,1.1325]
[1727061808814,3.15705068,149.0,148.9,18.13]
[1727061809013,3.3579,148.91,148.85,21.4892]
[1727061809215,24.56239158,149.0,148.88,18.13]
[1727061809630,3.3568,148.96,148.9,3.3579]
[1727061810219,3.357,148.95,148.88,18.13]
[1727061810612,24.56239158,149.0,148.88,18.13]
[1727061810809,3.3573,148.94,148.88,18.13]
[1727061811009,24.56239158,149.0,148.88,18.13]
[1727061811208,18.13,148.98,148.85,18.13]
[1727061811409,18.13,148.98,148.85,21.42918721]
[1727061811824,3.3571,148.95,148.89,3.3583]
[1727061812210,3.3571,148.95,148.87,18.13]
[1727061812519,3.3571,148.95,148.88,3.37979445]
[1727061812716,6.43239158,149.0,148.88,3.37979445]
[1727061813119,3.3572,148.94,148.88,6.73809445]
[1727061813922,3.3574,148.93,148.87,21.4887]
[1727061814122,3.3574,148.93,148.87,24.81060947]
[1727061814321,3.3574,148.93,148.87,21.4887]
[1727061814715,3.3576,148.92,148.87,18.13]
[1727061814916,18.13,148.98,148.85,18.13]
[1727061815318,3.358,148.91,148.85,18.13]
[1727061816125,18.13,148.96,148.85,18.13]
[1727061816424,18.13,148.94,148.83,18.13]
[1727061816625,3.3582,148.9,148.83,18.13]
[1727061816827,3.3582,148.9,148.85,18.13]
[1727061817029,3.3578,148.92,148.85,21.4891]
[1727061817324,3.41419164,148.92,148.85,18.13]
[1727061817529,2.7222,148.95,148.85,18.13]
[1727061817732,3.3582,148.9,148.85,18.13]
[1727061818422,3.3584,148.89,148.85,18.13]
[1727061819820,2.7222,148.95,148.85,18.13]
[1727061820226,3.3578,148.92,148.86,3.3588]
[1727061820729,2.7222,148.95,148.85,18.13]
[1727061821124,2.7222,148.95,148.87,18.13]
[1727061821430,3.3579,148.91,148.85,18.13]
[1727061821630,2.7222,148.95,148.85,18.13]
[1727061821928,3.3578,148.92,148.86,3.3588]
[1727061822633,3.3579,148.91,148.85,21.4892]
[1727061822822,1.3364,148.95,148.85,18.13]
[1727061823826,3.3581,148.9,148.85,18.13]
[1727061824130,1.3364,148.95,148.85,18.13]
[1727061824534,3.358,148.91,148.85,21.4892]
[1727061824831,1.3364,148.95,148.85,18.13]
[1727061825037,3.358,148.91,148.85,21.4892]
[1727061825332,3.358,148.91,148.85,18.13]
[1727061825732,3.358,148.91,148.85,21.489]
[1727061826330,1.3364,148.95,148.83,21.4895]
[1727061826331,19.4664,148.95,148.83,21.4895]
[1727061826532,19.4664,148.95,148.83,18.13]
[1727061827032,19.4664,148.95,148.83,21.4897]
[1727061827235,19.4664,148.95,148.83,18.13]
[1727061827429,19.4664,148.95,148.83,21.50880518]
[1727061827627,19.4664,148.95,148.85,3.3592]
[1727061827827,1.4182,148.97,148.85,18.13]
[1727061828023,1.4182,148.97,148.85,21.41808547]
[1727061828231,1.4182,148.97,148.87,3.3586]
[1727061828428,1.4182,148.97,148.85,18.13]
[1727061828735,1.4182,148.97,148.85,21.43051743]
[1727061829230,1.4182,148.97,148.85,18.13]
[1727061829736,1.4182,148.97,148.86,3.3588]
[1727061829926,1.4182,148.97,148.85,18.13]
[1727061830528,1.4182,148.97,148.88,18.13]
[1727061831133,3.3568,148.96,148.9,3.3579]
[1727061831326,1.4182,148.97,148.88,18.13]
[1727061831527,3.3572,148.94,148.89,3.3582]
[1727061831829,1.4182,148.97,148.88,18.13]
[1727061832034,19.5482,148.97,148.8,1.6119]
[1727061832336,3.3582,148.9,148.84,21.4893]
[1727061832934,3.3583,148.89,148.84,18.13]
[1727061833335,3.35214674,148.92,148.82,18.13]
[1727061833530,3.3587,148.88,148.82,21.4897]
[1727061833837,4.72816559,148.91,148.82,18.13]
[1727061834036,3.359,148.87,148.82,18.13]
[1727061834632,1.3753,148.9,148.82,18.13]
[1727061834939,3.3588,148.87,148.82,18.13]
[1727061835231,6.43239158,149.0,148.84,18.13]
[1727061835434,20.8148,148.99,148.84,18.13]
[1727061835736,20.8148,148.99,148.87,18.13]
[1727061836333,18.13,148.97,148.87,18.13]
[1727061836736,3.3578,148.92,148.87,18.13]
[1727061837839,18.13,148.97,148.87,18.13]
[1727061838833,3.3576,148.93,148.87,21.4887]
[1727061839236,2.6848,148.99,148.87,18.13]
[1727061839934,3.3578,148.92,148.87,18.13]
[1727061840131,18.13,148.98,148.87,18.13]
[1727061840333,18.13,148.98,148.84,18.13]
[1727061840941,18.13,148.97,148.84,18.13]
[1727061841345,18.13,148.96,148.85,3.3592]
[1727061841837,2.6848,148.99,148.84,21.4894]
[1727061842042,18.13,148.94,148.82,18.13]
[1727061842244,2.6848,148.99,148.84,18.13]